Workbook

Sheet 21.02
A2: МБОУ "СОШ №33" НМР РТ | D2: Отд./корп | E2: 1 неделя | H2: День | I2: 2022-02-21
A4: Раздел | B4: № рец. | C4: Блюдо | D4: Выход, г | E4: Цена | F4: Белки | G4: Жиры | H4: Углеводы | I4: Калорийность
A5: Завтрак
A6: Холод.закуска | B6: 338 | C6: Плоды и ягоды свежие (мандарины) | D6: 100 | F6: 0.90 | G6: 0.20 | H6: 8.10 | I6: 43.00
A7: гор.блюдо | B7: 175 | C7: Каша кукурузная молочная с маслом сливочным | D7: 180/3 | F7: 7.05 | G7: 9.85 | H7: 23.26 | I7: 189.09
A8: гор.напиток | B8: 2021 | C8: Какао с молоком | D8: 200 | F8: 4.08 | G8: 3.54 | H8: 17.58 | I8: 118.60
A9: хлеб | B9: 134 | C9: Батон нарезной | D9: 50 | F9: 3.75 | G9: 1.45 | H9: 25.70 | I9: 131.00
D10: 533 | F10: =F6+F7+F8+F9 -> 15.78 | G10: =G6+G7+G8+G9 -> 15.04 | H10: 74.64 | I10: 481.69
A11: Обед
A12: Холод.закуска | B12: 1 | C12: Бутерброд с маслом (30/10) | D12: 40 | F12: 2.36 | G12: 7.49 | H12: 14.89 | I12: 136.00
A13: 1 блюдо | B13: 88 | C13: Щи из св.капусты с картофелем | D13: 200 | F13: 1.41 | G13: 3.96 | H13: 6.32 | I13: 71.80
A14: 2 блюдо | B14: 294 | C14: Сосиски отварные | D14: 100/2 | F14: 10.55 | G14: 8.36 | H14: 5.99 | I14: 167.97
A15: Гарнир | B15: 202 | C15: Макароны отварные с маслом сливочным | D15: 150/3 | F15: 5.69 | G15: 2.80 | H15: 31.91 | I15: 175.76
A16: гор.напиток | B16: 310 | C16: Напиток из мандаринов | D16: 200 | F16: 0.45 | G16: 0.10 | H16: 33.99 | I16: 141.20
A17: хлеб | C17: Хлеб дарницкий | D17: 30 | F17: 1.98 | G17: 0.36 | H17: 11.86 | I17: 59.28
D18: 723
C20: бесп питание младшие + допол. питание | D20: =D10+D18 -> 1256 | E20: 103.45 | F20: =F11+F12+F13+F14+F15+F16+F17 -> 22.44 | G20: =G11+G12+G13+G14+G15+G16+G17 -> 23.07 | H20: 104.96 | I20: 752.01
F21: =F10+F20 -> 38.22 | G21: =G10+G20 -> 38.11 | H21: 179.60 | I21: 1233.70
A22: Завтрак
A23: Холод.закуска | B23: 14 | C23: Масло сливочное (порциями) | D23: 10 | F23: 0.08 | G23: 7.25 | H23: 0.13 | I23: 66.00
A24: 2 блюдо | B24: 294 | C24: Сосиски отварные | D24: 100/2 | F24: 6.04 | G24: 12.69 | H24: 10.14 | I24: 158.65
A25: Гарнир | B25: 202 | C25: Макароны отварные с маслом сливочным | D25: 180/3 | F25: 6.83 | G25: 2.93 | H25: 38.29 | I25: 206.96
A26: гор.напиток | B26: 310 | C26: Напиток из мандаринов | D26: 200 | F26: 0.45 | G26: 0.10 | H26: 23.99 | I26: 101.20
A27: хлеб | B27: 2012 | C27: Хлеб пшеничный | D27: 30 | F27: 2.28 | G27: 0.24 | H27: 14.76 | I27: 70.50
C30: бесплатное питание младшие | D30: 523 | E30: 68.45 | F30: =F23+F24+F25+F26+F27+F28 -> 15.68 | G30: =G23+G24+G25+G26+G27+G28 -> 23.21 | H30: 87.31 | I30: 603.31
A32: Раздел | B32: № рец. | C32: Блюдо | D32: Выход, г | E32: Цена | F32: Белки | G32: Жиры | H32: Углеводы | I32: Калорийность
A33: Завтрак
A34: Холод.закуска | B34: 14 | C34: Масло сливочное порциями | D34: 10 | F34: 0.08 | G34: 7.25 | H34: 0.13 | I34: 66.00
A35: 2 блюдо | B35: 294 | C35: Сосиски отварные | D35: 100/2 | F35: 6.04 | G35: 12.69 | H35: 10.14 | I35: 158.65
A36: Гарнир | B36: 202 | C36: Макароны отварные с маслом сливочным | D36: 180/5 | F36: 6.84 | G36: 6.39 | H36: 38.32 | I36: 220.20
A37: гор.напиток | B37: 310 | C37: Напиток из мандаринов | D37: 200 | F37: 0.45 | G37: 0.10 | H37: 23.99 | I37: 101.20
A38: хлеб | B38: 2012 | C38: Пшеничный/дарницкий | D38: 30/25 | F38: 3.93 | G38: 0.54 | H38: 24.66 | I38: 120.00
C42: питание старшие | D42: 550 | E42: 73.50 | F42: =F34+F35+F36+F37+F38 -> 17.34 | G42: =G34+G35+G36+G37+G38 -> 26.97 | H42: 97.24 | I42: 666.05

Sheet 22.02
A2: МБОУ "СОШ №33" НМР РТ | D2: Отд./корп | H2: День | I2: 2022-02-22
A4: Раздел | B4: № рец. | C4: Блюдо | D4: Выход, г | E4: Цена | F4: Белки | G4: Жиры | H4: Углеводы | I4: Калорийность
A5: Завтрак
B6: 209 | C6: Яйцо отварное | D6: 40 | F6: 5.08 | G6: 4.60 | H6: 0.28 | I6: 63.00
A7: Холод.закуска | B7: 14 | C7: Масло сливочное порциями | D7: 10 | F7: 0.08 | G7: 7.25 | H7: 0.13 | I7: 66.00
A8: гор.блюдо | B8: 175 | C8: Каша манная молочная | D8: 200 | F8: 6.03 | G8: 3.47 | H8: 32.85 | I8: 185.00
A9: гор.напиток | B9: 379 | C9: Кофейный напиток с молоком | D9: 200 | F9: 3.17 | G9: 2.68 | H9: 15.95 | I9: 100.60
A10: хлеб | B10: 134 | C10: Батон нарезной | D10: 60 | F10: 4.49 | G10: 1.74 | H10: 30.78 | I10: 156.89
D11: =SUM(D6:D10) -> 510 | F11: =F6+F7+F8+F9+F10 -> 18.85 | G11: =G6+G7+G8+G9+G10 -> 19.74 | H11: =H6+H7+H8+H9+H10 -> 79.99 | I11: =I6+I7+I8+I9+I10 -> 571.49
A12: Обед
A13: Холод.закуска | B13: 15 | C13: Сыр | D13: 15 | F13: 3.95 | G13: 3.99 | H13: 0.00 | I13: 51.50
A14: 1 блюдо | B14: 96 | C14: Рассольник ленинградский | D14: 200 | F14: 4.11 | G14: 5.07 | H14: 9.51 | I14: 85.80
A15: 2 блюдо | C15: Пельмени отварные с маслом сливочным | D15: 195/5 | F15: 20.49 | G15: 12.19 | H15: 35.00 | I15: 332.03
A16: гор.напиток | B16: 279 | C16: Компот из свежих яблок | D16: 200 | F16: 0.16 | G16: 0.16 | H16: 27.88 | I16: 114.60
A17: хлеб | B17: 2012 | C17: Хлеб дарницкий | D17: 45 | F17: 2.96 | G17: 0.54 | H17: 17.78 | I17: 88.92
D19: 660
C21: бесп питание младшие + допол. питание | D21: =D11+D19 -> 1170 | E21: 103.45 | F21: =F12+F13+F14+F15+F16+F17+F18 -> 31.67 | G21: =G12+G13+G14+G15+G16+G17+G18 -> 21.95 | H21: =H12+H13+H14+H15+H16+H17+H18 -> 90.17 | I21: =I12+I13+I14+I15+I16+I17+I18 -> 672.85
F22: =F11+F21 -> 50.52 | G22: =G11+G21 -> 41.69 | H22: =H11+H21 -> 170.16 | I22: =I11+I21 -> 1244.34
A23: Завтрак
A24: Холод.закуска | B24: 15 | C24: Сыр порциями | D24: 10 | F24: 2.63 | G24: 2.66 | H24: 0.00 | I24: 34.33
A25: 2 блюдо | C25: Пельмени отварные с маслом сливочным | D25: 195/5 | F25: 20.49 | G25: 12.19 | H25: 35.00 | I25: 332.03
A26: гор.напиток | B26: 379 | C26: Кофейный напиток с молоком | D26: 200 | F26: 3.17 | G26: 2.68 | H26: 15.95 | I26: 101.00
A27: хлеб | B27: 2012 | C27: Пшеничный/дарницкий | D27: 30/20 | F27: 3.60 | G27: 0.48 | H27: 22.68 | I27: 110.10
C31: бесплатное питание младшие | D31: 460 | E31: 68.45 | F31: =F24+F25+F26+F27+F28+F29 -> 29.89 | G31: =G24+G25+G26+G27+G28+G29 -> 18.01 | H31: =H24+H25+H26+H27+H28+H29 -> 73.63 | I31: =I24+I25+I26+I27+I28+I29 -> 577.46
A33: Раздел | B33: № рец. | C33: Блюдо | D33: Выход, г | E33: Цена | F33: Белки | G33: Жиры | H33: Углеводы | I33: Калорийность
A34: Завтрак
A35: Холод.закуска | B35: 15 | C35: Сыр | D35: 10 | F35: 2.63 | G35: 2.66 | H35: 0.00 | I35: 34.33
A36: 2 блюдо | C36: Пельмени отварные с маслом сливочным | D36: 200/5 | F36: 20.49 | G36: 12.19 | H36: 35.00 | I36: 332.03
A37: доп.гарнир | B37: 344 | C37: Печенье весовое | D37: 30 | F37: 1.62 | G37: 2.09 | H37: 12.30 | I37: 125.00
A38: напиток | B38: 279 | C38: Компот из свежих яблок | D38: 200 | F38: 0.16 | G38: 0.16 | H38: 27.88 | I38: 114.60
A39: хлеб | B39: 2012 | C39: Хлеб дарницкий | D39: 30 | F39: 1.98 | G39: 0.36 | H39: 11.86 | I39: 59.28
C43: питание старшие | D43: 475 | E43: 73.50 | F43: =F35+F36+F37+F38+F39+F40 -> 26.88 | G43: =G35+G36+G37+G38+G39+G40 -> 17.46 | H43: 87.04 | I43: 665.24

Sheet 23.02
A2: МБОУ "СОШ №33" НМР РТ | D2: Отд./корп | H2: День | I2: 2022-02-23
A4: Раздел | B4: № рец. | C4: Блюдо | D4: Выход, г | E4: Цена | F4: Белки | G4: Жиры | H4: Углеводы | I4: Калорийность
A5: Завтрак
A6: Холод.закуска | B6: 338 | C6: Фрукты (яблоки) | D6: 100 | F6: 0.40 | G6: 0.40 | H6: 9.80 | I6: 47.00
A7: 2 блюдо | B7: 223 | C7: Запеканка творожная с молоком сгущенным | D7: 130/20 | F7: 14.20 | G7: 18.06 | H7: 34.98 | I7: 358.00
A8: го.напиток | B8: 376 | C8: Чай с сахаром | D8: 190/10 | F8: 0.07 | G8: 0.02 | H8: 10.01 | I8: 40.00
A9: хлеб | B9: 134 | C9: Батон нарезной | D9: 50 | F9: 3.75 | G9: 1.45 | H9: 25.70 | I9: 131.00
D11: 500 | F11: =F6+F7+F8+F9+F10 -> 18.42 | G11: =G6+G7+G8+G9+G10 -> 19.93 | H11: =H6+H7+H8+H9+H10 -> 80.49 | I11: =I6+I7+I8+I9+I10 -> 576.00
A12: Обед
A13: Холод.закуска | C13: Зеленый горошек к/с (доп.гарнир) | D13: 60 | F13: 1.86 | G13: 0.12 | H13: 3.89 | I13: 24.00
A14: 1 блюдо | B14: 300 | C14: Суп - лапша домашняя с картофелем | D14: 200 | F14: 3.70 | G14: 5.82 | H14: 12.95 | I14: 107.20
A15: 2 блюдо | B15: 291 | C15: Плов из куриных грудок | D15: 50/150 | F15: 11.28 | G15: 15.84 | H15: 32.38 | I15: 333.62
A16: гор.напиток | C16: Кисель | D16: 200 | F16: 0.60 | G16: 0.10 | H16: 20.20 | I16: 123.60
A17: хлеб | B17: 2012 | C17: Пшеничный/дарницкий | D17: 30/30 | F17: 4.76 | G17: 0.69 | H17: 29.61 | I17: 144.75
D19: 720
C21: бесп питание младшие + допол. питание | D21: =D11+D19 -> 1220 | E21: 103.45 | F21: =F12+F13+F14+F15+F16+F17+F18 -> 22.20 | G21: =G12+G13+G14+G15+G16+G17+G18 -> 22.57 | H21: =H12+H13+H14+H15+H16+H17+H18 -> 99.03 | I21: =I12+I13+I14+I15+I16+I17+I18 -> 733.17
F22: =F11+F21 -> 40.62 | G22: =G11+G21 -> 42.50 | H22: =H11+H21 -> 179.53 | I22: =I11+I21 -> 1309.17
A23: Завтрак
A24: Холод.закуска | C24: Зеленый горошек к/с (доп.гарнир) | D24: 60 | F24: 1.86 | G24: 0.12 | H24: 3.89 | I24: 24.00
A25: 2 блюдо | B25: 291 | C25: Плов из куриных грудок | D25: 50/150 | F25: 11.28 | G25: 15.84 | H25: 32.38 | I25: 333.62
A26: гор.напиток | B26: 376 | C26: Чай с сахаром | D26: 190/10 | F26: 0.07 | G26: 0.02 | H26: 10.01 | I26: 40.00
A27: хлеб | B27: 2012 | C27: Пшеничный/дарницкий | D27: 20/20 | F27: 2.84 | G27: 0.40 | H27: 17.76 | I27: 86.60
C31: бесплатное питание младшие | D31: 500 | E31: 68.45 | F31: =F24+F25+F26+F27+F28+F29 -> 16.05 | G31: =G24+G25+G26+G27+G28+G29 -> 16.38 | H31: =H24+H25+H26+H27+H28+H29 -> 64.04 | I31: =I24+I25+I26+I27+I28+I29 -> 484.22
A33: Раздел | B33: № рец. | C33: Блюдо | D33: Выход, г | E33: Цена | F33: Белки | G33: Жиры | H33: Углеводы | I33: Калорийность
A34: Завтрак
A35: 1 блюдо | B35: 300 | C35: Суп - лапша домашняя с картофелем | D35: 250 | F35: 4.63 | G35: 7.28 | H35: 16.19 | I35: 134.00
A36: 2 блюдо | B36: 291 | C36: Плов из куриных грудок | D36: 50/200 | F36: 15.04 | G36: 16.23 | H36: 43.17 | I36: 404.82
A37: гор.напиток | B37: 376 | C37: Чай с сахаром | D37: 190/10 | F37: 0.07 | G37: 0.02 | H37: 10.01 | I37: 40.00
A38: хлеб | B38: 2012 | C38: Пшеничный/дарницкий | D38: 20/30 | F38: 3.50 | G38: 0.52 | H38: 21.70 | I38: 106.28
C43: питание старшие | D43: 750 | E43: 73.50 | F43: =F35+F36+F37+F38+F39 -> 23.24 | G43: =G35+G36+G37+G38+G39 -> 24.05 | H43: =H35+H36+H37+H38+H39 -> 91.07 | I43: =I35+I36+I37+I38+I39 -> 685.10

Sheet 24.02
A2: МБОУ "СОШ №33" НМР РТ | D2: Отд./корп | H2: День | I2: 2022-02-24
A4: Раздел | B4: № рец. | C4: Блюдо | D4: Выход, г | E4: Цена | F4: Белки | G4: Жиры | H4: Углеводы | I4: Калорийность
A5: Завтрак
A6: Холод.закуска | B6: 338 | C6: Плоды и ягоды свежие (мандарины) | D6: 100 | F6: 0.90 | G6: 0.20 | H6: 8.10 | I6: 43.00
A7: гор.блюдо | B7: 182 | C7: Каша кукурузная молочная с маслом слив. | D7: 150/5 | F7: 6.39 | G7: 9.85 | H7: 28.30 | I7: 220.80
A8: гор.напиток | B8: 379 | C8: Какао с молоком | D8: 200 | F8: 4.08 | G8: 3.54 | H8: 7.58 | I8: 78.60
A9: хлеб | B9: 134 | C9: Батон нарезной | D9: 50 | F9: 3.40 | G9: 1.44 | H9: 25.57 | I9: 130.35
D11: 505 | F11: =F6+F7+F8+F9+F10 -> 14.77 | G11: =G6+G7+G8+G9+G10 -> 15.03 | H11: =H6+H7+H8+H9+H10 -> 69.55 | I11: =I6+I7+I8+I9+I10 -> 472.75
A12: Обед
A13: Холод.закуска | B13: 15 | C13: Сыр порционно | D13: 15 | F13: 5.26 | G13: 5.32 | H13: 0.00 | I13: 68.67
A14: 1 блюдо | B14: 84 | C14: Борщ Сибирский со сметаной | D14: 200/5 | F14: 4.98 | G14: 3.94 | H14: 11.51 | I14: 110.30
A15: 2 блюдо | B15: 265 | C15: Котлеты "Аппетитные" мясо-куриные | D15: 90 | F15: 8.71 | G15: 10.30 | H15: 17.71 | I15: 198.35
A16: Гарнир | B16: 128 | C16: Картофельное пюре с маслом | D16: 150/3 | F16: 2.22 | G16: 4.34 | H16: 18.82 | I16: 151.76
A17: гор.напиток | B17: 378 | C17: Компот из изюма | D17: 200 | F17: 0.94 | G17: 0.85 | H17: 9.95 | I17: 50.00
A18: хлеб | B18: 2012 | C18: Хлеб пшеничный | D18: 40 | F18: 2.74 | G18: 0.29 | H18: 17.71 | I18: 84.60
D19: 703
C21: бесп питание младшие + допол. питание | D21: =D11+D19 -> 1208 | E21: 103.45 | F21: =F12+F13+F14+F15+F16+F17+F18 -> 24.85 | G21: =G12+G13+G14+G15+G16+G17+G18 -> 25.04 | H21: =H12+H13+H14+H15+H16+H17+H18 -> 75.70 | I21: =I12+I13+I14+I15+I16+I17+I18 -> 663.68
F22: =F11+F21 -> 39.62 | G22: =G11+G21 -> 40.07 | H22: =H11+H21 -> 145.25 | I22: =I11+I21 -> 1136.43
A23: Завтрак
A24: Холод.закуска | B24: 338 | C24: Плоды и ягоды свежие (мандарины) | D24: 100 | F24: 0.90 | G24: 0.20 | H24: 8.10 | I24: 43.00
A25: 2 блюдо | B25: 120 | C25: Котлеты "Аппетитные" мясо-куриные | D25: 90 | F25: 8.71 | G25: 10.30 | H25: 17.71 | I25: 184.30
A26: Гарнир | B26: 128 | C26: Картофельное пюре с маслом | D26: 150/3 | F26: 2.22 | G26: 4.34 | H26: 18.82 | I26: 151.76
A27: гор.напиток | B27: 379 | C27: Какао с молоком | D27: 200 | F27: 4.08 | G27: 3.54 | H27: 17.58 | I27: 118.60
A28: хлеб | B28: 2012 | C28: Хлеб пшеничный | D28: 30 | F28: 2.28 | G28: 0.24 | H28: 14.76 | I28: 70.50
C31: бесплатное питание младшие | D31: 573 | E31: 68.45 | F31: =F24+F25+F26+F27+F28+F29 -> 18.19 | G31: =G24+G25+G26+G27+G28+G29 -> 18.62 | H31: =H24+H25+H26+H27+H28+H29 -> 76.97 | I31: =I24+I25+I26+I27+I28+I29 -> 568.16
A33: Раздел | B33: № рец. | C33: Блюдо | D33: Выход, г | E33: Цена | F33: Белки | G33: Жиры | H33: Углеводы | I33: Калорийность
A34: Завтрак
A35: Холод.закуска | B35: 338 | C35: Плоды и ягоды свежие (мандарины) | D35: 100 | F35: 0.90 | G35: 0.20 | H35: 8.10 | I35: 43.00
A36: 2 блюдо | B36: 120 | C36: Котлеты "Аппетитные" мясо-куриные | D36: 100 | F36: 9.67 | G36: 12.74 | H36: 19.68 | I36: 204.77
A37: Гарнир | B37: 128 | C37: Картофельное пюре с маслом | D37: 180/3 | F37: 2.66 | G37: 4.77 | H37: 22.58 | I37: 178.15
A38: гор.напиток | B38: 379 | C38: Какао с молоком | D38: 200 | F38: 4.08 | G38: 3.54 | H38: 17.58 | I38: 118.60
A39: хлеб | B39: 2012 | C39: Пшеничный/дарницкий | D39: 30/30 | F39: 4.26 | G39: 0.60 | H39: 26.59 | I39: 129.64
C43: питание старшие | D43: 643 | E43: 73.50 | F43: =F35+F36+F37+F38+F39 -> 21.57 | G43: =G35+G36+G37+G38+G39 -> 21.85 | H43: =H35+H36+H37+H38+H39 -> 94.53 | I43: =I35+I36+I37+I38+I39 -> 674.16

Sheet 25.02
A2: МБОУ "СОШ №33" НМР РТ | D2: Отд./корп | H2: День | I2: 2022-02-25
A4: Раздел | B4: № рец. | C4: Блюдо | D4: Выход, г | E4: Цена | F4: Белки | G4: Жиры | H4: Углеводы | I4: Калорийность
A5: Завтрак
B6: 209 | C6: Яйцо отварное | D6: 40 | F6: 5.08 | G6: 4.60 | H6: 0.28 | I6: 63.00
A7: гор.блюдо | B7: 173 | C7: Каша пшенная молочная с маслом сливочным | D7: 200 | F7: 5.58 | G7: 8.68 | H7: 28.92 | I7: 210.00
A8: гор.напиток | B8: 377 | C8: Чай с сахаром и лимоном | D8: 185/10/5 | F8: 0.13 | G8: 0.02 | H8: 10.21 | I8: 42.00
A9: хлеб | B9: 134 | C9: Батон нарезной | D9: 60 | F9: 4.49 | G9: 1.74 | H9: 30.78 | I9: 156.89
D11: 500 | F11: =F6+F7+F8+F9+F10 -> 15.28 | G11: =G6+G7+G8+G9+G10 -> 15.04 | H11: =H6+H7+H8+H9+H10 -> 70.19 | I11: =I6+I7+I8+I9+I10 -> 471.89
A12: Обед
A13: Холод.закуска | B13: 301 | C13: Салат из фасоли к/с,кукурузы к/с и огурцов соленых | D13: 60 | F13: 1.55 | G13: 7.03 | H13: 16.26 | I13: 160.10
A14: 1 блюдо | B14: 119 | C14: Суп гороховый с гренками | D14: 200/10 | F14: 6.49 | G14: 6.86 | H14: 20.36 | I14: 178.62
A15: 2 блюдо | B15: 290 | C15: Птица тушеная в сметанно-томатном соусе | D15: 50/50 | F15: 10.55 | G15: 11.66 | H15: 5.91 | I15: 155.00
A16: Гарнир | B16: 202 | C16: Спагетти отварные | D16: 150 | F16: 3.80 | G16: 0.63 | H16: 32.50 | I16: 156.00
A17: гор.напиток | B17: 348 | C17: Компот из свежих яблок | D17: 200 | F17: 0.16 | G17: 0.16 | H17: 27.88 | I17: 114.60
A18: хлеб | B18: 2012 | C18: Хлеб дарницкий | D18: 50 | F18: 3.30 | G18: 0.60 | H18: 19.80 | I18: 99.00
D19: 770
C21: бесп питание младшие + допол. питание | D21: =D11+D19 -> 1270 | E21: 103.45 | F21: =F12+F13+F14+F15+F16+F17+F18 -> 25.85 | G21: =G12+G13+G14+G15+G16+G17+G18 -> 26.94 | H21: =H12+H13+H14+H15+H16+H17+H18 -> 122.71 | I21: =I12+I13+I14+I15+I16+I17+I18 -> 863.32
F22: =F11+F21 -> 41.13 | G22: =G11+G21 -> 41.98 | H22: =H11+H21 -> 192.90 | I22: =I11+I21 -> 1335.21
A23: Завтрак
A24: Холод.закуска | B24: 301 | C24: Салат из фасоли к/с,кукурузы к/с и огурцов соленых | D24: 60 | F24: 1.55 | G24: 7.03 | H24: 16.26 | I24: 160.10
A25: 2 блюдо | B25: 290 | C25: Птица тушеная в сметанно-томатном соусе | D25: 50/50 | F25: 10.55 | G25: 11.66 | H25: 5.91 | I25: 155.00
A26: Гарнир | B26: 202 | C26: Спагетти отварные | D26: 150 | F26: 3.80 | G26: 0.63 | H26: 32.50 | I26: 156.00
A27: гор.напиток | B27: 377 | C27: Чай с сахаром и лимоном | D27: 185/10/5 | F27: 0.13 | G27: 0.02 | H27: 10.21 | I27: 42.00
A28: хлеб | B28: 2012 | C28: Пшеничный | D28: 30 | F28: 2.28 | G28: 0.24 | H28: 14.73 | I28: 70.36
C31: бесплатное питание младшие | D31: 540 | E31: 68.45 | F31: =F24+F25+F26+F27+F28+F29 -> 18.31 | G31: =G24+G25+G26+G27+G28+G29 -> 19.58 | H31: =H24+H25+H26+H27+H28+H29 -> 79.61 | I31: =I24+I25+I26+I27+I28+I29 -> 583.46
A33: Раздел | B33: № рец. | C33: Блюдо | D33: Выход, г | E33: Цена | F33: Белки | G33: Жиры | H33: Углеводы | I33: Калорийность
A34: Завтрак
A35: 1 блюдо | B35: 119 | C35: Суп гороховый с гренками | D35: 250/10 | F35: 6.73 | G35: 8.98 | H35: 24.14 | I35: 185.07
A36: 2 блюдо | B36: 290 | C36: Птица тушеная в сметанно-томатном соусе | D36: 50/50 | F36: 10.55 | G36: 11.66 | H36: 5.91 | I36: 155.00
A37: Гарнир | B37: 202 | C37: Спагетти отварные | D37: 180 | F37: 4.06 | G37: 0.76 | H37: 39.00 | I37: 187.20
A38: гор.напиток | B38: 377 | C38: Чай с сахаром и лимоном | D38: 185/10/5 | F38: 0.13 | G38: 0.02 | H38: 10.21 | I38: 42.00
A39: хлеб | B39: 2012 | C39: Хлеб дарницкий | D39: 40 | F39: 2.13 | G39: 0.48 | H39: 15.81 | I39: 79.04
C43: питание старшие | D43: 780 | E43: 73.50 | F43: =F35+F36+F37+F38+F39 -> 23.60 | G43: =G35+G36+G37+G38+G39 -> 21.90 | H43: =H35+H36+H37+H38+H39 -> 95.07 | I43: =I35+I36+I37+I38+I39 -> 648.31

Sheet 26.02
A2: МБОУ "СОШ №33" НМР РТ | D2: Отд./корп | H2: День | I2: 2022-02-26
A4: Раздел | B4: № рец. | C4: Блюдо | D4: Выход, г | E4: Цена | F4: Белки | G4: Жиры | H4: Углеводы | I4: Калорийность
A5: Завтрак
A6: Холод.закуска | B6: 338 | C6: Фрукты (яблоки) | D6: 100 | F6: 0.40 | G6: 0.40 | H6: 9.80 | I6: 47.00
A7: 2 блюдо | C7: Котлеты из говядины | D7: 200/5 | F7: 14.64 | G7: 14.61 | H7: 13.08 | I7: 256.00
A8: гарнир | B8: 173 | C8: Каша пшеничная вязкая на воде с маслом слив. | D8: 180/3 | F8: 4.83 | G8: 7.26 | H8: 29.49 | I8: 202.54
A9: гор.напиток | B9: 2012 | C9: Напиток из замороженных ягод (крас.смород.) | D9: 200 | F9: 0.20 | G9: 0.08 | H9: 21.42 | I9: 88.60
A10: хлеб | B10: 2012 | C10: Пшеничный/дарницкий | D10: 20/20 | F10: 2.84 | G10: 0.40 | H10: 21.07 | I10: 86.51
C14: питание старшие | D14: 623 | E14: 73.50 | F14: =SUM(F6:F10) -> 22.91 | G14: =SUM(G6:G10) -> 22.75 | H14: 94.86 | I14: 680.65

Sheet 28.02
A2: МБОУ "СОШ №33" НМР РТ | D2: Отд./корп | E2: 2 неделя | H2: День | I2: 2022-02-28
A4: Раздел | B4: № рец. | C4: Блюдо | D4: Выход, г | E4: Цена | F4: Белки | G4: Жиры | H4: Углеводы | I4: Калорийность
A5: Завтрак
A7: гор.блюдо | B7: 173 | C7: Каша геркулесовая молочная с маслом сливочным | D7: 200 | F7: 7.74 | G7: 10.53 | H7: 24.14 | I7: 210.00
A8: доп.гарнир | C8: Печенье весовое | D8: 40 | F8: 2.93 | G8: 3.87 | H8: 21.73 | I8: 166.67
A9: гор.напиток | B9: 310 | C9: Напиток из мандаринов | D9: 200 | F9: 3.17 | G9: 2.68 | H9: 10.95 | I9: 100.60
A10: хлеб | B10: 134 | C10: Батон нарезной | D10: 60 | F10: 4.50 | G10: 1.74 | H10: 30.81 | I10: 135.22
D11: 500 | F11: =F6+F7+F8+F9+F10 -> 18.34 | G11: =G6+G7+G8+G9+G10 -> 18.82 | H11: 87.63 | I11: 612.49
A12: Обед
A13: Холод.закуска | B13: 10 | C13: Салат из зеленого горошка к/с | D13: 60 | F13: 3.78 | G13: 3.10 | H13: 3.75 | I13: 50.16
A14: 1 блюдо | B14: 96 | C14: Рассольник домашний со сметаной | D14: 250/5 | F14: 5.93 | G14: 7.14 | H14: 27.42 | I14: 168.80
A15: гор.блюдо | B15: 293 | C15: Курица запеченная | D15: 100 | F15: 10.01 | G15: 9.02 | H15: 0.00 | I15: 195.40
A16: гарнир | B16: 171 | C16: Рис отварной рассыпчптый с маслом сливоч. | D16: 150/3 | F16: 3.09 | G16: 8.55 | H16: 46.75 | I16: 210.70
A17: хол.напиток | B17: 389 | C17: Сок фруктовый (разливной) | D17: 200 | F17: 1.00 | G17: 0.00 | H17: 20.20 | I17: 84.80
A18: хлеб | B18: 2012 | C18: Хлеб дарницкий | D18: 40 | F18: 2.64 | G18: 0.48 | H18: 15.84 | I18: 79.20
D19: 808
C21: бесп питание младшие + допол. питание | D21: =D11+D19 -> 1308 | E21: 103.45 | F21: =F12+F13+F14+F15+F16+F17+F18 -> 26.45 | G21: =G12+G13+G14+G15+G16+G17+G18 -> 28.29 | H21: 113.96 | I21: 789.06
F22: =F11+F21 -> 44.79 | G22: =G11+G21 -> 47.11 | H22: 201.59 | I22: 1401.55
A23: Завтрак
A25: 2 блюдо | B25: 293 | C25: Курица запеченная | D25: 100 | F25: 10.01 | G25: 9.02 | H25: 0.00 | I25: 195.40
A26: Гарнир | B26: 171 | C26: Рис отварной рассыпчатый с маслом сливочным | D26: 150/3 | F26: 3.09 | G26: 8.55 | H26: 46.75 | I26: 210.70
A27: гор.напиток | B27: 389 | C27: Сок фруктовый (разливной) | D27: 200 | F27: 1.00 | G27: 0.00 | H27: 20.2 | I27: 84.80
A28: хлеб | B28: 2012 | C28: Хлеб пшеничный/дарницкий | D28: 30/20 | F28: 3.60 | G28: 0.48 | H28: 22.68 | I28: 110.10
C31: бесплатное питание младшие | D31: 503 | E31: 68.45 | F31: =F24+F25+F26+F27+F28+F29 -> 17.70 | G31: =G24+G25+G26+G27+G28+G29 -> 18.05 | H31: 89.63 | I31: 601.00
A33: Раздел | B33: № рец. | C33: Блюдо | D33: Выход, г | E33: Цена | F33: Белки | G33: Жиры | H33: Углеводы | I33: Калорийность
A34: Завтрак
A35: доп.гарнир | B35: 338 | C35: Фрукты (яблоки) | D35: 100 | F35: 0.40 | G35: 0.40 | H35: 9.80 | I35: 47.00
A36: 2 блюдо | B36: 293 | C36: Курица запеченная | D36: 100 | F36: 10.010 | G36: 9.020 | H36: 0.000 | I36: 195.40
A37: Гарнир | B37: 171 | C37: Рис отварной рассыпчатый с маслом сливочным | D37: 180/3 | F37: 3.70 | G37: 9.81 | H37: 56.09 | I37: 248.88
A38: гор.напиток | B38: 348 | C38: Компот из свежих яблок | D38: 200 | F38: 0.16 | G38: 0.16 | H38: 20.88 | I38: 114.60
A39: хлеб | B39: 2012 | C39: Пшеничный/дарницкий | D39: 30/40 | F39: 2.84 | G39: 0.40 | H39: 21.07 | I39: 86.51
C43: питание старшие | D43: 653 | E43: 73.50 | F43: =F35+F36+F37+F38+F39+F40 -> 17.11 | G43: =G35+G36+G37+G38+G39+G40 -> 19.79 | H43: 107.84 | I43: 692.39

Sheet 01.03
A2: МБОУ "СОШ №33" НМР РТ | D2: Отд./корп | H2: День | I2: 2022-03-01
A4: Раздел | B4: № рец. | C4: Блюдо | D4: Выход, г | E4: Цена | F4: Белки | G4: Жиры | H4: Углеводы | I4: Калорийность
A5: Завтрак
A6: Холод.закуска | B6: 14 | C6: Масло сливочное | D6: 10 | F6: 0.08 | G6: 7.25 | H6: 0.13 | I6: 66.00
B7: 209 | C7: Яйцо отварное | D7: 40 | F7: 5.08 | G7: 4.6 | H7: 0.28 | I7: 63
A8: гор.блюдо | B8: 173 | C8: Каша пшеничная молочная | D8: 200 | F8: 8.56 | G8: 4.81 | H8: 44.19 | I8: 248.2
A9: гор.напиток | B9: 378 | C9: Чай с молоком и сахаром | D9: 160/30/10 | F9: 0.940 | G9: 0.850 | H9: 9.950 | I9: 50
A10: хлеб | B10: 134 | C10: Батон нарезной | D10: 50 | F10: 3.75 | G10: 1.45 | H10: 25.7 | I10: 131
D11: 500 | F11: =F6+F7+F8+F9+F10 -> 18.41 | G11: =G6+G7+G8+G9+G10 -> 18.96 | H11: =H6+H7+H8+H9+H10 -> 80.25 | I11: =I6+I7+I8+I9+I10 -> 558.40
A12: Обед
A13: 1 блюдо | B13: 101 | C13: Суп с крупой (пшено) с картофелем | D13: 200 | F13: 3.58 | G13: 7.27 | H13: 9.69 | I13: 73.60
A14: 2 блюдо | B14: 234 | C14: Биточки рыбные | D14: 90 | F14: 7.01 | G14: 8.02 | H14: 11.21 | I14: 157.20
A15: гарнир | B15: 202 | C15: Макароны отварные с кукурузой к/с | D15: 150/30 | F15: 6.52 | G15: 7.52 | H15: 24.33 | I15: 186.09
A16: гор.напиток | C16: Кисель | D16: 200 | F16: 0.6 | G16: 0.1 | H16: 30.2 | I16: 123.6
A17: хлеб | B17: 2012 | C17: Пшеничный/дарницкий | D17: 30/30 | F17: 4.26 | G17: 1.10 | H17: 26.59 | I17: 129.64
D19: 730
C21: бесп питание младшие + допол. питание | D21: =D11+D19 -> 1230 | E21: 103.45 | F21: =F12+F13+F14+F15+F16+F17+F18 -> 21.97 | G21: =G12+G13+G14+G15+G16+G17+G18 -> 24.01 | H21: =H12+H13+H14+H15+H16+H17+H18 -> 102.02 | I21: =I12+I13+I14+I15+I16+I17+I18 -> 670.13
F22: =F11+F21 -> 40.38 | G22: =G11+G21 -> 42.97 | H22: =H11+H21 -> 182.27 | I22: =I11+I21 -> 1228.53
A23: Завтрак
A24: 2 блюдо | B24: 234 | C24: Биточки рыбные | D24: 90 | F24: 7.01 | G24: 8.02 | H24: 11.21 | I24: 157.20
A25: Гарнир | B25: 202 | C25: Макароны отварные | D25: 150 | F25: 3.80 | G25: 5.62 | H25: 17.50 | I25: 156.00
A26: гор.напиток | B26: 378 | C26: Чай с молоком и сахаром | D26: 160/30/10 | F26: 0.94 | G26: 0.85 | H26: 9.95 | I26: 50.00
A27: хлеб | B27: 2012 | C27: Пшеничный/дарницкий | D27: 30/30 | F27: 4.26 | G27: 0.60 | H27: 31.61 | I27: 129.76
C31: бесплатное питание младшие | D31: 500 | E31: 68.45 | F31: =F24+F25+F26+F27+F28+F29 -> 16.01 | G31: =G24+G25+G26+G27+G28+G29 -> 15.09 | H31: =H24+H25+H26+H27+H28+H29 -> 70.27 | I31: =I24+I25+I26+I27+I28+I29 -> 492.96
A33: Раздел | B33: № рец. | C33: Блюдо | D33: Выход, г | E33: Цена | F33: Белки | G33: Жиры | H33: Углеводы | I33: Калорийность
A34: Завтрак
A36: 1 блюдо | B36: 101 | C36: Суп с крупой (пшено) с картофелем | D36: 250 | F36: 4.07 | G36: 8.07 | H36: 12.11 | I36: 82.77
A37: 2 блюдо | B37: 234 | C37: Биточки рыбные | D37: 100 | F37: 7.79 | G37: 8.91 | H37: 12.46 | I37: 174.67
A38: Гарнир | B38: 202 | C38: Макароны отварные | D38: 180 | F38: 4.06 | G38: 1.84 | H38: 21.00 | I38: 187.20
A39: гор.напиток | B39: 378 | C39: Чай с сахаром | D39: 190/10 | F39: 0.07 | G39: 0.02 | H39: 10.01 | I39: 40.00
A40: хлеб | B40: 2012 | C40: Пшеничный/дарницкий | D40: 20/20 | F40: 2.84 | G40: 0.40 | H40: 21.07 | I40: 86.51
C43: питание старшие | D43: 770 | E43: 73.50 | F43: =F35+F36+F37+F38+F39+F40 -> 18.83 | G43: =G35+G36+G37+G38+G39+G40 -> 19.24 | H43: 76.65 | I43: 571.15

Sheet 02.03
A2: МБОУ "СОШ №33" НМР РТ | D2: Отд./корп | H2: День | I2: 2022-03-02
A4: Раздел | B4: № рец. | C4: Блюдо | D4: Выход, г | E4: Цена | F4: Белки | G4: Жиры | H4: Углеводы | I4: Калорийность
A5: Завтрак
A6: Холод.закуска | B6: 338 | C6: Фрукты (мандарины) | D6: 100 | F6: 0.4 | G6: 0.4 | H6: 9.8 | I6: 47
A7: гор.блюдо | B7: 223 | C7: Запеканка творожная с молоком сгущенным | D7: 130/20 | F7: 15.20 | G7: 18.060 | H7: 34.784 | I7: 408
A8: гор.напиток | B8: 376 | C8: Чай с сахаром | D8: 190/10 | F8: 0.07 | G8: 0.02 | H8: 10.01 | I8: 30
A9: хлеб | B9: 134 | C9: Батон нарезной | D9: 50 | F9: 3.75 | G9: 1.45 | H9: 25.7 | I9: 131
D11: 500 | F11: =F6+F7+F8+F9+F10 -> 19.42 | G11: =G6+G7+G8+G9+G10 -> 19.93 | H11: =H6+H7+H8+H9+H10 -> 80.29 | I11: =SUM(I6:I9) -> 616.00
A12: Обед
A13: Холод.закуска | B13: 1 | C13: Бутерброд с сыром | D13: 50 | F13: 6.21 | G13: 7.86 | H13: 14.03 | I13: 155.00
A14: 1 блюдо | B14: 119 | C14: Суп гороховый | D14: 200 | F14: 4.39 | G14: 4.22 | H14: 18.23 | I14: 118.60
A15: 2 блюдо | C15: Пельмени отварные с маслом сливочным | D15: 195/5 | F15: 20.49 | G15: 12.19 | H15: 35.00 | I15: 332.03
A16: Гарнир
A17: гор.напиток | B17: 699 | C17: Напиток лимонный | D17: 200 | F17: 0.14 | G17: 0.02 | H17: 24.44 | I17: 101.48
A18: хлеб | B18: 2012 | C18: Хлеб пшеничный/дарницкий | D18: 30/30 | F18: 4.25 | G18: 0.60 | H18: 26.59 | I18: 129.64
D19: 750
C21: бесп питание младшие + допол. питание | D21: =D11+D19 -> 1250 | E21: 103.45 | F21: =F13+F14+F15+F16+F17+F18 -> 35.48 | G21: =G13+G14+G15+G16+G17+G18 -> 24.89 | H21: 118.29 | I21: 836.75
F22: =F11+F21 -> 54.90 | G22: =G11+G21 -> 44.82 | H22: =H11+H21 -> 198.58 | I22: =I11+I21 -> 1452.75
A23: Завтрак
A25: Холод.закуска | B25: 15 | C25: Сыр | D25: 10 | F25: 2.63 | G25: 2.66 | H25: 0.00 | I25: 34.33
A26: 2 блюдо | C26: Пельмени отварные с маслом сливочным | D26: 195/5 | F26: 20.49 | G26: 12.19 | H26: 35.00 | I26: 332.03
A27: Гарнир
A28: гор.напиток | B28: 376 | C28: Чай с сахаром | D28: 190/10 | F28: 0.07 | G28: 0.02 | H28: 19.01 | I28: 40.00
A29: хлеб | B29: 2012 | C29: Пшеничный/дарницкий | D29: 20/20 | F29: 2.84 | G29: 0.40 | H29: 17.76 | I29: 106.60
C31: бесплатное питание младшие | D31: 520 | E31: 68.45 | F31: =F24+F25+F26+F27+F28+F29 -> 26.03 | G31: =G24+G25+G26+G27+G28+G29 -> 15.27 | H31: =H24+H25+H26+H27+H28+H29 -> 71.77 | I31: =I24+I25+I26+I27+I28+I29 -> 512.96
A33: Раздел | B33: № рец. | C33: Блюдо | D33: Выход, г | E33: Цена | F33: Белки | G33: Жиры | H33: Углеводы | I33: Калорийность
A34: Завтрак
A35: Холод.закуска | B35: 15 | C35: Сыр | D35: 10 | F35: 2.63 | G35: 2.66 | H35: 0.00 | I35: 34.33
A36: 2 блюдо | C36: Пельмени отварные с маслом сливочным | D36: 200/5 | F36: 20.49 | G36: 12.19 | H36: 35.00 | I36: 332.03
A37: Гарнир
A38: гор.напиток | B38: 699 | C38: Напиток лимонный | D38: 200 | F38: 0.14 | G38: 0.02 | H38: 24.44 | I38: 101.48
A39: хлеб | B39: 2012 | C39: Пшеничный/дарницкий | D39: 30/25 | F39: 3.93 | G39: 0.54 | H39: 29.63 | I39: 119.86
C43: питание старшие | D43: 470 | E43: 73.50 | F43: =F35+F36+F37+F38+F39+F40 -> 27.19 | G43: =G35+G36+G37+G38+G39+G40 -> 15.41 | H43: 89.07 | I43: 587.70

Sheet 03.03
A2: МБОУ "СОШ №33" НМР РТ | D2: Отд./корп | H2: День | I2: 2022-03-03
A4: Раздел | B4: № рец. | C4: Блюдо | D4: Выход, г | E4: Цена | F4: Белки | G4: Жиры | H4: Углеводы | I4: Калорийность
A5: Завтрак
A6: гор.блюдо | B6: 181 | C6: Каша манная молочная с маслом сливочным | D6: 200 | F6: 7.23 | G6: 8.77 | H6: 10.3 | I6: 135
A7: гор.напиток | B7: 377 | C7: Чай с сахаром и лимоном | D7: 185/10/5 | F7: 0.13 | G7: 0.02 | H7: 10.21 | I7: 42
A8: доп.гарнир | C8: Печенье | D8: 50 | F8: 3.67 | G8: 4.83 | H8: 24.16 | I8: 178
A9: хлеб | B9: 134 | C9: Батон нарезной | D9: 50 | F9: 3.75 | G9: 1.45 | H9: 25.7 | I9: 131
D11: 500 | F11: =F6+F7+F8+F9+F10 -> 14.78 | G11: =G6+G7+G8+G9+G10 -> 15.07 | H11: =H6+H7+H8+H9+H10 -> 70.37 | I11: =I6+I7+I8+I9+I10 -> 486.00
A12: Обед
A13: гор.блюдо | C13: Блины с маслом сливочным 45/5 | D13: 50 | F13: 3.32 | G13: 6.08 | H13: 17.34 | I13: 137.19
A14: 1 блюдо | B14: 82 | C14: Борщ из свежей капусты,с картофелем со сметаной | D14: 200/10 | F14: 3.70 | G14: 4.44 | H14: 9.11 | I14: 90.20
A15: 2 блюдо | B15: 291 | C15: Плов с куриными грудками | D15: 50/150 | F15: 12.58 | G15: 13.54 | H15: 38.38 | I15: 303.62
A16: гор.напиток | B16: 348 | C16: Компот из свежих яблок | D16: 200 | F16: 0.16 | G16: 0.4 | H16: 20.88 | I16: 114.6
A17: хлеб | B17: 2012 | C17: Пшеничный/ржаной | D17: 20/20 | F17: 2.84 | G17: 0.4 | H17: 17.76 | I17: 86.6
D19: 700
C21: бесп питание младшие + допол. питание | D21: =D11+D19 -> 1200 | E21: 103.45 | F21: =F12+F13+F14+F15+F16+F17+F18 -> 22.60 | G21: =G12+G13+G14+G15+G16+G17+G18 -> 24.86 | H21: =H12+H13+H14+H15+H16+H17+H18 -> 103.47 | I21: =I12+I13+I14+I15+I16+I17+I18 -> 732.21
F22: =F11+F21 -> 37.38 | G22: =G11+G21 -> 39.93 | H22: =H11+H21 -> 173.84 | I22: =I11+I21 -> 1218.21
A23: Завтрак
A24: гор.блюдо | C24: Блины с маслом сливочным 45/5 | D24: 50 | F24: 3.32 | G24: 6.08 | H24: 17.34 | I24: 137.19
A25: 2 блюдо | B25: 291 | C25: Плов с куриными грудками | D25: 50/150 | F25: 12.58 | G25: 13.54 | H25: 38.38 | I25: 303.62
A26: гор.напиток | B26: 378 | C26: Чай с сахаром и лимоном | D26: 185/10/5 | F26: 0.13 | G26: 0.02 | H26: 10.21 | I26: 42
A27: хлеб | B27: 2012 | C27: Пшеничный/дарницкий | D27: 30/20 | F27: 3.50 | G27: 0.52 | H27: 21.70 | I27: 106.28
C31: бесплатное питание младшие | D31: 500 | E31: 68.45 | F31: =F24+F25+F26+F27+F28+F29 -> 19.53 | G31: =G24+G25+G26+G27+G28+G29 -> 20.16 | H31: =H24+H25+H26+H27+H28+H29 -> 87.63 | I31: =I24+I25+I26+I27+I28+I29 -> 589.09
A33: Раздел | B33: № рец. | C33: Блюдо | D33: Выход, г | E33: Цена | F33: Белки | G33: Жиры | H33: Углеводы | I33: Калорийность
A34: Завтрак
A35: гор.блюдо | C35: Блины с маслом сливочным 45/5 | D35: 50 | F35: 3.32 | G35: 6.08 | H35: 17.34 | I35: 137.19
A36: 1 блюдо | B36: 82 | C36: Борщ из свежей капусты,с картофелем со сметаной | D36: 250/10 | F36: 4.06 | G36: 4.72 | H36: 14.02 | I36: 159.22
A37: 2 блюдо | B37: 291 | C37: Плов с куриными грудками | D37: 50/180 | F37: 12.98 | G37: 13.65 | H37: 45.22 | I37: 339.98
A38: гор.напиток | B38: 378 | C38: Чай с сахаром и лимоном | D38: 185/10/5 | F38: 0.13 | G38: 0.02 | H38: 10.21 | I38: 42.00
A39: хлеб | B39: 2012 | C39: Хлеб пшеничный/дарницкий | D39: 20/20 | F39: 2.84 | G39: 0.40 | H39: 21.07 | I39: 86.51
C43: питание старшие | D43: 790 | E43: 73.50 | F43: =SUM(F35:F39) -> 23.33 | G43: =SUM(G35:G39) -> 24.87 | H43: 107.86 | I43: 764.90

Sheet 04.03
A2: МБОУ "СОШ №33" НМР РТ | D2: Отд./корп | H2: День | I2: 2022-03-04
A4: Раздел | B4: № рец. | C4: Блюдо | D4: Выход, г | E4: Цена | F4: Белки | G4: Жиры | H4: Углеводы | I4: Калорийность
A5: Завтрак
A6: Холод.закуска | C6: Плоды и ягоды свежие (апельсины) | D6: 100 | F6: 0.90 | G6: 0.20 | H6: 8.10 | I6: 43.00
A7: гор.блюдо | B7: 175 | C7: Каша кукурузная молочная с маслом сливочным | D7: 180/3 | F7: 7.05 | G7: 9.85 | H7: 23.26 | I7: 189.09
A8: гор.напиток | B8: 2021 | C8: Какао с молоком | D8: 200 | F8: 4.08 | G8: 3.54 | H8: 17.58 | I8: 118.60
A9: хлеб | B9: 134 | C9: Батон нарезной | D9: 50 | F9: 3.75 | G9: 1.45 | H9: 20.70 | I9: 131.00
D11: 533 | F11: =F6+F7+F8+F9+F10 -> 15.78 | G11: =G6+G7+G8+G9+G10 -> 15.04 | H11: =H6+H7+H8+H9+H10 -> 69.64 | I11: =I6+I7+I8+I9+I10 -> 481.69
A12: Обед
A13: Холод.закуски | B13: 15 | C13: Сыр (порциями) | D13: 10 | F13: 2.63 | G13: 2.66 | H13: 0.00 | I13: 34.33
A14: 1 блюдо | B14: 108 | C14: Суп картофельный с клецками | D14: 200 | F14: 2.85 | G14: 5.06 | H14: 21.43 | I14: 115.40
A15: 2 блюдо | B15: 265 | C15: Сосиски отварные | D15: 100/2 шт | F15: 6.04 | G15: 12.69 | H15: 10.140 | I15: 158.65
A16: Гарнир | B16: 199 | C16: Гороховое пюре с маслом сливочным | D16: 180/5 | F16: 10.63 | G16: 5.32 | H16: 41.970 | I16: 279.60
A17: гор.напиток | B17: 378 | C17: Компот из изюма | D17: 200 | F17: 0.60 | G17: 0.10 | H17: 30.20 | I17: 123.60
A18: хлеб | B18: 2012 | C18: Пшеничный/дарницкий | D18: 25/25 | F18: 3.55 | G18: 0.5 | H18: 22.2 | I18: 108.25
D19: 745
C21: бесп питание младшие + допол. питание | D21: =D11+D19 -> 1278 | E21: 103.45 | F21: =F13+F14+F15+F16+F17+F18 -> 26.30 | G21: =G13+G14+G15+G16+G17+G18 -> 26.33 | H21: 125.94 | I21: 819.83
F22: =F11+F21 -> 42.08 | G22: =G11+G21 -> 41.37 | H22: =H11+H21 -> 195.58 | I22: =I11+I21 -> 1301.52
A23: Завтрак
A24: Холод.закуска | B24: 1 | C24: Бутерброд с маслом сливочным 30/10 | D24: 40 | F24: 2.36 | G24: 7.49 | H24: 14.89 | I24: 136
A25: 2 блюдо | B25: 265 | C25: Сосиски отварные | D25: 100/2 шт | F25: 6.04 | G25: 12.69 | H25: 10.140 | I25: 158.65
A26: Гарнир | B26: 199 | C26: Гороховое пюре с маслом сливочным | D26: 150/3 | F26: 8.05 | G26: 1.92 | H26: 41.97 | I26: 225.30
A27: гор.напиток | B27: 2021 | C27: Фруктовый чай | D27: 200 | F27: 0.22 | G27: 0.02 | H27: 8.05 | I27: 32.72
A28: хлеб | B28: 2012 | C28: Хлеб дарницкий | D28: 20 | F28: 1.32 | G28: 0.24 | H28: 7.92 | I28: 39.6
C31: бесплатное питание младшие | D31: 513 | E31: 68.45 | F31: =F24+F25+F26+F27+F28+F29 -> 17.99 | G31: =G24+G25+G26+G27+G28+G29 -> 22.36 | H31: =H24+H25+H26+H27+H28+H29 -> 82.97 | I31: =I24+I25+I26+I27+I28+I29 -> 592.27
A33: Раздел | B33: № рец. | C33: Блюдо | D33: Выход, г | E33: Цена | F33: Белки | G33: Жиры | H33: Углеводы | I33: Калорийность
A34: Завтрак
A35: Холод.закуска | B35: 338 | C35: Фрукты (яблоки) | D35: 100 | F35: 0.4 | G35: 0.4 | H35: 9.8 | I35: 47
A36: 1 блюдо | B36: 108 | C36: Суп картофельный с клецками | D36: 250 | F36: 3.56 | G36: 6.33 | H36: 22.79 | I36: 144.25
A37: 2 блюдо | B37: 265 | C37: Сосиски отварные | D37: 100/2 шт | F37: 6.04 | G37: 12.69 | H37: 10.140 | I37: 158.65
A38: Гарнир | B38: 199 | C38: Гороховое пюре с маслом сливочным | D38: 180/5 | F38: 10.63 | G38: 5.32 | H38: 41.97 | I38: 279.60
A39: гор.напиток | B39: 389 | C39: Фруктовый чай | D39: 200 | F39: 0.22 | G39: 0.02 | H39: 8.05 | I39: 32.72
A40: хлеб | B40: 2012 | C40: Хлеб дарницкий | D40: 20 | F40: 1.32 | G40: 0.24 | H40: 7.92 | I40: 39.60
C43: питание старшие | D43: 855 | E43: 73.50 | F43: =F35+F36+F37+F38+F39+F40 -> 22.17 | G43: =G35+G36+G37+G38+G39+G40 -> 25.00 | H43: 100.67 | I43: 701.82

Sheet 05.03
A2: МБОУ "СОШ №33" НМР РТ | D2: Отд./корп | H2: День | I2: 2022-03-05
A4: Раздел | B4: № рец. | C4: Блюдо | D4: Выход, г | E4: Цена | F4: Белки | G4: Жиры | H4: Углеводы | I4: Калорийность
A5: Завтрак
A6: Холод.закуска | B6: 15 | C6: Сыр порциями | D6: 10 | F6: 2.63 | G6: 2.66 | H6: 0.00 | I6: 34.33
A7: 2 блюдо | B7: 293 | C7: Гуляш из куриной грудки | D7: 50/50 | F7: 8.34 | G7: 8.83 | H7: 3.40 | I7: 194.39
A8: Гарнир | B8: 171 | C8: Каша полбяная рассыпчатая с маслом сливочным | D8: 200/3 | F8: 8.63 | G8: 10.90 | H8: 55.30 | I8: 305.13
A9: холод.напиток | B9: 389 | C9: Сок фруктовый разливной | D9: 200 | F9: 1.00 | G9: 0.00 | H9: 20.20 | I9: 84.80
A10: хлеб | B10: 2012 | C10: Пшеничный/дарницкий | D10: 20/20 | F10: 2.84 | G10: 0.40 | H10: 21.07 | I10: 86.51
C14: питание старшие | D14: 553 | E14: 73.50 | F14: =F6+F7+F8+F9+F10 -> 23.44 | G14: =G6+G7+G8+G9+G10 -> 22.79 | H14: =H6+H7+H8+H9+H10 -> 99.97 | I14: =I6+I7+I8+I9+I10 -> 705.16
